bitfinex-derivatives/quotes_ETHF0:USTF0_20251021
["timestamp","ask_amount","ask_price","bid_price","bid_amount"]
[1761027003226,0.2106,3860.4,3860.3,0.7716]
[1761027003424,1.23092,3860.8,3860.7,0.7716]
[1761027003729,1.81742166,3860.8,3860.7,0.7716]
[1761027004528,1.81742166,3860.8,3860.7,0.5392]
[1761027004723,1.23095,3860.5,3860.4,0.7716]
[1761027005426,0.3335,3860.1,3859.9,0.79152]
[1761027005621,0.7648,3860.0,3859.9,0.7716]
[1761027006940,0.7648,3860.5,3860.4,0.7716]
[1761027008122,0.896,3860.5,3860.4,0.2139]
[1761027008326,0.7648,3860.2,3860.1,0.4463]
[1761027008828,0.7648,3860.2,3860.1,0.7716]
[1761027009330,0.4313,3860.2,3860.1,0.7716]
[1761027010534,0.46622,3860.0,3859.9,0.5392]
[1761027010724,1.23102,3860.0,3859.9,0.5392]
[1761027011924,0.7648,3859.9,3859.8,0.00336523]
[1761027012124,0.2106,3859.0,3858.9,1.93344694]
[1761027012333,0.7648,3859.0,3858.9,0.5392]
[1761027013228,0.76737925,3859.0,3858.9,0.98302606]
[1761027013433,0.43387925,3859.0,3858.9,0.9854421]
[1761027014542,0.76737925,3859.0,3858.9,0.9854421]
[1761027015638,0.21317925,3859.0,3858.9,0.9854421]
[1761027018346,0.75557925,3859.0,3858.9,0.9854421]
[1761027018843,0.21317925,3859.0,3858.9,0.9854421]
[1761027019049,0.00257925,3859.0,3858.9,2.40202373]
[1761027020451,0.77007925,3859.0,3858.9,0.9854421]
[1761027020945,0.23007925,3859.0,3858.9,0.9854421]
[1761027021250,0.77007925,3859.0,3858.9,0.9854421]
[1761027021954,0.44837925,3859.0,3858.9,0.9854421]
[1761027022160,0.23007925,3859.0,3858.9,0.9854421]
[1761027023052,0.00257925,3859.0,3858.9,0.9854421]
[1761027026067,0.00257925,3859.0,3858.9,1.4517921]
[1761027033371,0.5447,3860.2,3860.0,0.1267]
[1761027033565,0.9244155,3860.8,3860.7,0.7514]
[1761027033872,0.9244155,3860.8,3860.5,0.1267]
[1761027033873,0.2298,3861.1,3861.0,0.8781]
[1761027034066,0.4409,3861.4,3861.3,0.7514]
[1761027034272,0.7558,3861.7,3861.6,0.7514]
[1761027034469,0.75811376,3861.7,3861.6,0.7514]
[1761027035766,0.75811376,3861.7,3861.6,1.21742]
[1761027035966,0.00231376,3861.7,3861.6,1.21742]
[1761027036968,0.00231376,3861.7,3861.6,1.42795746]
[1761027041372,0.00231376,3861.7,3861.2,9.234]
[1761027041373,0.3149,3861.6,3861.3,0.3258]
[1761027041576,0.3149,3861.6,3861.2,9.234]
[1761027041577,1.22186,3861.3,3861.2,0.41989959]
[1761027041972,0.7558,3861.3,3861.2,0.95559959]
[1761027042275,0.2298,3861.3,3861.2,0.95559959]
[1761027042477,0.7558,3861.3,3861.2,0.95559959]
[1761027043683,0.4409,3860.8,3860.7,0.4256]
[1761027043870,1.22188,3861.2,3860.7,0.4256]
[1761027044177,1.59534796,3862.2,3861.1,0.7514]
[1761027044486,1.22184,3861.5,3861.4,0.7514]
[1761027048475,0.7558,3861.5,3861.4,0.7514]
[1761027048881,0.4409,3861.5,3861.4,0.7514]
[1761027049174,0.7558,3861.5,3861.4,0.7514]
[1761027050972,0.23211376,3861.7,3861.6,0.7514]
[1761027051176,0.7558,3861.3,3861.2,0.5415]
[1761027051879,0.7558,3861.3,3861.2,0.7514]
[1761027052376,0.4409,3861.3,3861.2,0.7514]
[1761027052782,0.7558,3861.3,3861.2,0.7514]
[1761027053672,1.22185,3861.3,3861.2,0.7514]
[1761027055277,0.7558,3861.3,3861.2,0.7514]
[1761027056070,0.7558,3861.3,3861.2,1.21747]
[1761027056770,0.7558,3861.3,3861.2,1.21746]
[1761027058584,1.22185,3861.3,3861.2,0.5415]
[1761027058777,1.22185,3861.3,3861.0,0.59278]
[1761027058978,1.4731,3861.6,3861.2,0.3386]
[1761027059175,1.4731,3861.6,3861.5,1.36243]
[1761027059682,1.5561,3861.6,3861.5,0.8964]
[1761027060079,1.0034,3861.6,3861.5,0.8964]
[1761027060281,0.7904,3861.6,3861.5,0.8964]
[1761027060780,1.0034,3861.6,3861.5,0.8964]
[1761027061584,1.5561,3861.6,3861.5,0.7607]
[1761027063786,1.5561,3861.6,3861.5,0.8964]
[1761027064191,0.7904,3861.6,3861.5,0.8964]
[1761027064384,0.7904,3861.6,3861.5,5.8964]
[1761027064794,0.7657,3862.7,3862.6,0.7607]
[1761027064987,1.35777518,3862.7,3862.6,0.7607]
[1761027065188,1.35777518,3862.7,3862.6,0.5503]
[1761027065680,5.59421082,3862.7,3861.7,0.5503]
[1761027065883,0.1389,3861.5,3861.3,1.3921529]
[1761027066084,0.4392,3861.2,3861.1,0.2117]
[1761027066284,0.5395,3861.5,3861.1,0.88818]
[1761027066486,0.4392,3861.5,3861.2,0.80467]
[1761027066788,0.213,3861.5,3861.4,0.7607]
[1761027067090,0.80509447,3861.5,3861.4,0.7607]
[1761027070189,1.35779447,3861.5,3861.4,0.7607]
[1761027070391,1.35779447,3861.5,3861.2,0.00233875]
[1761027070596,0.213,3861.3,3861.2,0.76303875]
[1761027070793,1.4585,3861.6,3861.3,0.46606]
[1761027070998,1.4585,3861.6,3861.5,0.7607]
[1761027071288,2.05092573,3861.6,3861.5,0.7607]
[1761027071496,1.35812573,3861.6,3861.5,0.7607]
[1761027071695,1.35824579,3861.6,3861.5,0.7607]
[1761027072298,1.35824579,3861.6,3861.5,0.8964]
[1761027072794,0.80554579,3861.6,3861.5,0.8964]
[1761027072996,0.097,3861.8,3861.6,0.80463]
[1761027073198,0.097,3861.8,3861.7,0.7607]
[1761027073396,0.59244343,3861.8,3861.7,0.7607]
[1761027073594,0.80544343,3861.8,3861.7,0.7607]
[1761027073991,0.59244343,3861.8,3861.7,0.7607]
[1761027074191,1.35814343,3861.8,3861.7,0.7607]
[1761027074903,0.59244343,3861.8,3861.7,0.7607]
[1761027075104,0.6158,3861.9,3861.8,1.2267]
[1761027075604,0.213,3861.9,3861.8,1.2267]
[1761027078108,0.3124,3862.2,3862.1,0.794]
[1761027078600,0.9075811,3862.2,3862.1,0.794]
[1761027079302,0.6921811,3862.2,3862.1,0.794]
[1761027079608,0.097,3862.2,3862.1,0.794]
[1761027085917,0.3124,3862.2,3862.1,0.794]
[1761027086113,0.8561,3862.2,3862.1,0.5694]
[1761027086816,0.8561,3862.2,3862.1,0.794]
[1761027090906,1.32206,3862.2,3862.1,0.794]
[1761027091110,1.32206,3862.2,3862.1,0.5694]
[1761027091716,0.8561,3862.2,3861.5,1.5278529]
[1761027091913,0.771,3861.8,3861.7,1.24822]
[1761027093722,0.46603,3861.6,3861.5,0.3406]
[1761027093915,0.46603,3861.6,3861.3,0.46606]
[1761027093916,1.23705,3861.4,3861.3,0.5567]
[1761027094121,0.771,3861.4,3861.3,0.2161]
[1761027094314,0.771,3861.4,3861.3,0.5567]
[1761027094513,0.771,3861.4,3861.3,0.7822]
[1761027100331,0.771,3861.4,3861.3,1.24826]
[1761027102329,1.41639824,3861.6,3861.2,0.00233875]
[1761027102330,0.215,3861.6,3861.5,1.03854]
[1761027102541,0.683,3861.7,3861.6,1.24823]
[1761027102831,0.8098914,3861.7,3861.6,1.24823]
[1761027103034,0.5948914,3861.7,3861.6,1.24823]
[1761027103220,0.3239,3862.0,3861.5,0.1309]
[1761027103221,0.5389,3862.0,3861.8,0.4416]
[1761027103421,0.59486683,3861.9,3861.8,0.4416]
[1761027103624,0.097,3862.2,3862.1,0.46597]
[1761027103834,0.097,3862.2,3862.1,1.24817]
[1761027107138,0.6366,3862.5,3862.4,0.46593]
[1761027107322,0.771,3863.5,3863.4,0.4416]
[1761027107528,0.5389,3863.8,3863.5,0.80639]
[1761027107730,0.4471,3864.1,3864.0,0.9131]
[1761027107929,0.215,3864.1,3864.0,0.9131]
[1761027108135,0.5389,3864.4,3864.3,0.7822]
[1761027108334,0.54132043,3864.4,3864.3,0.78480477]
[1761027108531,0.77342043,3864.4,3864.3,0.78480477]
[1761027109635,0.21742043,3864.4,3864.3,0.78480477]
[1761027109824,0.00242043,3864.4,3864.3,0.78480477]
[1761027112829,0.77342043,3864.4,3864.3,0.78480477]
[1761027113431,0.00242043,3864.4,3864.3,0.78480477]
[1761027114542,2.18981867,3864.4,3864.3,0.55930477]
[1761027114731,0.77342043,3864.4,3864.3,0.78480477]
[1761027116332,0.77342043,3864.4,3864.3,0.00260477]
[1761027116533,0.77342043,3864.4,3864.3,0.55930477]
[1761027116736,0.77342043,3864.4,3864.3,0.78480477]
[1761027117850,0.77342043,3864.4,3864.3,0.34320477]
[1761027118048,0.77342043,3864.4,3864.3,0.56690477]
[1761027119453,0.77342043,3864.4,3864.3,0.79000477]
[1761027120147,0.77472043,3864.4,3864.3,0.79000477]
[1761027121645,0.00242043,3864.4,3864.3,0.79000477]
[1761027124349,0.00242043,3864.4,3864.3,5.79000477]
[1761027126952,0.00242043,3864.4,3864.3,0.79000477]
[1761027130251,0.68778,3865.4,3865.3,0.4468]
[1761027130551,0.2222,3865.4,3865.3,0.7852]
[1761027131144,0.22490633,3865.4,3865.3,0.7852]
[1761027131954,0.77420633,3865.4,3865.3,0.7852]
[1761027132251,0.32790633,3865.4,3865.3,0.7852]
[1761027132450,0.00270633,3865.4,3865.3,0.7852]
[1761027134448,0.22490633,3865.4,3865.3,0.7852]
[1761027136556,0.00270633,3865.4,3865.3,0.7852]
[1761027140560,0.22910633,3865.4,3865.3,0.7852]
[1761027142156,1.64276211,3865.4,3865.3,0.7852]
[1761027142360,2.17506211,3865.4,3865.3,0.7852]
[1761027142763,2.64063211,3865.4,3865.3,0.7852]
[1761027142960,2.64063211,3865.4,3865.3,0.5621]
[1761027143365,0.22910633,3865.4,3865.3,0.7835]
[1761027143557,1.22697633,3865.4,3865.3,0.5621]
[1761027143757,1.22697633,3865.4,3865.3,0.3384]
[1761027143958,1.22697633,3865.4,3865.3,0.5653]
[1761027144362,1.22697633,3865.4,3865.3,0.7867]
[1761027145661,0.3184,3864.7,3864.5,0.3418]
[1761027145879,2.17235578,3864.6,3864.5,0.9263]
[1761027146054,1.41365578,3864.6,3864.5,0.9263]
[1761027146260,1.64005578,3864.9,3864.8,0.7901]
[1761027146864,1.64005578,3865.2,3865.1,0.7901]
[1761027147066,2.76214014,3865.2,3865.1,0.7901]
[1761027149574,2.76214014,3865.2,3865.1,0.5687]
[1761027149763,2.76214014,3865.2,3865.1,0.2269]
[1761027150167,2.76214014,3865.2,3865.1,0.546]
[1761027150767,0.4433,3864.6,3864.5,0.3191]
[1761027150966,0.7567,3864.4,3864.3,0.00260477]
[1761027151164,1.34692475,3864.4,3864.3,0.00260477]
[1761027152274,1.34692475,3864.4,3864.3,0.32170477]
[1761027152574,1.34692475,3864.4,3864.3,0.54000477]
[1761027152965,1.03352475,3864.4,3864.3,1.21860477]
[1761027153175,0.7567,3864.4,3864.3,1.21860477]
[1761027153389,1.3467118,3864.4,3864.3,1.21860477]
[1761027153673,1.0333118,3864.4,3864.3,1.21860477]
[1761027153877,0.4433,3864.4,3864.3,1.21860477]
[1761027154174,0.7567,3864.4,3864.3,1.21860477]
[1761027154771,0.4433,3864.4,3864.3,1.21860477]
[1761027155273,0.2223,3864.4,3864.3,1.21860477]
[1761027155777,0.2223,3864.4,3864.3,0.75290477]
[1761027156075,0.7567,3864.4,3864.3,0.75290477]
[1761027157179,0.2223,3864.4,3864.3,0.75290477]
[1761027157383,1.90472335,3864.7,3864.3,0.75290477]
[1761027157384,0.7567,3864.7,3864.6,0.7503]
[1761027157584,1.34641659,3864.7,3864.6,0.7503]
[1761027157887,0.5357,3865.0,3864.9,0.7503]
[1761027158085,0.81198734,3865.0,3864.9,0.7503]
[1761027159288,0.2223,3865.0,3864.9,0.7503]
[1761027160188,0.5357,3865.0,3864.9,0.7503]
[1761027160384,0.2223,3865.0,3864.9,0.7503]
[1761027161085,0.4433,3865.3,3865.2,0.7503]
[1761027161586,0.7567,3865.3,3865.2,0.7503]
[1761027162183,0.7567,3865.1,3865.0,0.5374]
[1761027162481,0.7567,3865.1,3865.0,0.7503]
[1761027162683,0.4433,3865.1,3865.0,0.876]
[1761027162987,0.2223,3865.1,3865.0,0.876]
[1761027163887,1.90742968,3865.4,3865.3,0.7503]
[1761027163888,0.22500633,3865.4,3865.3,0.7503]
[1761027164775,0.00270633,3865.4,3865.3,0.7503]
[1761027169880,0.22500633,3865.4,3865.3,0.7503]
[1761027173494,0.53840633,3865.4,3865.3,0.7503]
[1761027173684,0.75940633,3865.4,3865.3,0.7503]
[1761027174495,1.22497633,3865.4,3865.3,0.7503]
[1761027174690,0.00270633,3865.4,3865.3,0.7503]
[1761027174890,0.00270633,3865.4,3865.3,1.21588]
[1761027182000,0.00270633,3865.4,3865.1,0.571]
[1761027182001,0.7686,3865.2,3865.1,0.571]
[1761027182297,1.23419,3865.2,3865.1,0.7977]
[1761027182683,0.7686,3865.2,3865.1,0.7977]
[1761027183600,1.23419,3865.2,3865.1,0.7977]
[1761027184094,0.7686,3865.2,3865.1,0.7977]
[1761027184400,0.4481,3865.2,3865.1,1.26331]
[1761027184594,0.227,3865.2,3865.1,1.26331]
[1761027184795,0.22970633,3865.4,3865.1,0.91761]
[1761027184998,0.00270633,3865.4,3865.3,1.26328]
[1761027209519,0.54470633,3865.4,3865.3,0.7977]
[1761027210015,0.54470633,3865.4,3865.3,1.26328]
[1761027212021,1.23207633,3865.4,3865.3,0.7977]
[1761027212214,1.23207633,3865.4,3865.3,0.571]
[1761027212518,1.82466724,3865.4,3865.3,0.571]
[1761027213924,0.46559,3865.2,3865.1,9.4202]
[1761027214218,1.24339,3865.2,3865.1,9.4202]
[1761027214421,1.24339,3865.2,3865.1,9.7367]
[1761027216817,2.65736422,3865.2,3865.1,9.7367]
[1761027218923,2.65736422,3865.2,3865.1,9.9614]
[1761027219312,2.19177422,3865.2,3865.1,9.9614]
[1761027219515,1.86407422,3865.2,3865.1,10.42701]
[1761027219820,1.64227422,3865.2,3865.1,10.42701]
[1761027220016,0.00270633,3865.4,3865.2,0.3165]
[1761027220220,0.00270633,3865.4,3865.3,0.7624]
[1761027220412,0.23100633,3865.4,3865.3,0.7624]
[1761027223712,0.55870633,3865.4,3865.3,0.7624]
[1761027224421,0.78050633,3865.4,3865.3,0.7624]
[1761027225426,0.78050633,3865.4,3865.3,1.22798]
[1761027226526,1.24607633,3865.4,3865.3,0.7624]
[1761027227726,0.78050633,3865.4,3865.3,0.7624]
[1761027228019,0.78050633,3865.4,3865.3,1.22798]
[1761027229419,0.23100633,3865.4,3865.3,1.22798]
[1761027230023,0.55870633,3865.4,3865.3,1.22798]
[1761027231930,0.78050633,3865.4,3865.3,1.22798]
[1761027235226,0.00270633,3865.4,3865.3,1.22798]
[1761027236932,0.78050633,3865.4,3865.3,0.3165]
[1761027237134,1.37272989,3865.4,3865.3,0.3165]
[1761027237426,0.7778,3865.2,3865.1,9.199]
[1761027237627,0.3158,3864.8,3864.7,0.549]
[1761027237827,0.3158,3864.5,3864.4,0.3378]
[1761027238134,2.75617726,3864.5,3864.4,0.549]
[1761027238331,2.16377422,3864.5,3864.4,0.549]
[1761027238531,2.16377422,3864.5,3864.4,0.7586]
[1761027240529,1.84797422,3864.5,3864.4,0.7586]
[1761027240750,0.2224,3864.7,3864.6,0.7586]
[1761027240923,0.81436177,3864.7,3864.6,0.7586]
[1761027241239,0.5382,3865.0,3864.9,0.7586]
[1761027241441,1.13005426,3865.0,3864.9,0.7586]
[1761027241634,1.34165426,3865.0,3864.9,0.7586]
[1761027242639,0.7498,3864.8,3864.7,0.3378]
[1761027242828,2.75562848,3864.8,3864.7,0.549]
[1761027243727,1.13005426,3864.8,3864.7,0.7586]
[1761027243931,1.34165426,3864.8,3864.7,0.7586]
[1761027244138,0.434,3865.2,3865.1,0.4208]
[1761027244337,1.02556517,3865.2,3865.1,0.7586]
[1761027244740,0.59156517,3865.2,3865.1,0.7586]
[1761027245932,0.81396517,3865.2,3865.1,0.7586]
[1761027246632,1.34136517,3865.2,3865.1,0.549]
[1761027246838,1.02556517,3865.2,3864.8,0.3378]
[1761027247037,0.7498,3864.9,3864.8,0.4208]
[1761027247541,0.7498,3864.9,3864.8,0.7586]
[1761027248634,0.434,3864.9,3864.8,0.7586]
[1761027249244,0.4656,3865.2,3865.1,0.7586]
[1761027249444,0.81390026,3865.2,3865.1,1.2242]
[1761027249940,0.81390026,3865.2,3865.1,0.7586]
[1761027253142,1.12970026,3865.2,3865.1,0.7586]
[1761027253335,1.34130026,3865.2,3865.1,0.7586]
[1761027253945,0.81390026,3865.2,3865.1,0.7586]
[1761027254241,1.34130026,3865.2,3865.1,0.7586]
[1761027254940,0.81390026,3865.2,3865.1,1.2242]
[1761027255443,0.81390026,3865.2,3865.1,0.7586]
[1761027255639,1.27949026,3865.2,3865.1,0.7586]
[1761027256545,1.61669026,3865.2,3865.1,0.7586]
[1761027257044,1.83869026,3865.2,3865.1,0.7586]
[1761027257453,1.24303,3864.9,3864.8,0.7824]
[1761027260446,1.24303,3864.9,3864.8,0.5669]
[1761027261639,1.24303,3864.9,3864.8,0.7824]
[1761027262946,0.90583,3864.9,3864.8,0.7824]
[1761027263245,0.68383,3864.9,3864.8,0.7824]
[1761027263846,0.2182,3864.9,3864.8,0.7824]
[1761027264049,0.46561,3865.0,3864.9,0.3363]
[1761027264237,0.46561,3865.0,3864.9,0.7824]
[1761027264548,1.27456535,3865.0,3864.9,0.7824]
[1761027265647,0.59075535,3865.0,3864.9,0.7824]
[1761027265850,0.68378,3865.3,3865.2,0.7824]
[1761027266047,1.27456435,3865.3,3865.2,0.7824]
[1761027266948,1.61176435,3865.3,3865.2,0.7824]
[1761027267452,1.27456435,3865.3,3865.2,0.7824]
[1761027267651,1.59076435,3865.3,3865.2,0.7824]
[1761027268146,1.82096435,3865.3,3865.2,0.7824]
[1761027275448,1.82096435,3865.3,3865.2,0.5669]
[1761027276251,0.78182,3865.0,3864.9,0.3346]
[1761027276454,1.95580435,3865.0,3864.9,0.3346]
[1761027276651,0.78184,3864.8,3864.7,11.14212499]
[1761027276846,1.82741205,3864.8,3864.7,11.14212499]
[1761027278854,1.82741205,3864.8,3864.7,11.35732499]
[1761027280153,1.04557205,3864.8,3864.7,11.35732499]
[1761027280354,0.81537205,3864.8,3864.7,11.35732499]
[1761027280545,0.59187205,3864.8,3864.7,11.35732499]
[1761027281457,1.82741205,3864.8,3864.7,11.35732499]
[1761027282561,1.82741205,3864.8,3864.7,11.14212499]
[1761027282751,1.82741205,3864.8,3864.7,11.35732499]
[1761027283047,1.51121205,3864.8,3864.7,11.35732499]
[1761027284652,0.59187205,3864.8,3864.7,11.82297499]
[1761027284858,0.54240633,3865.4,3865.3,0.3346]
[1761027285048,0.81789488,3865.4,3865.3,0.7747]
[1761027285245,1.28346488,3865.4,3865.3,0.7747]
[1761027286959,1.82986488,3865.4,3865.3,0.7747]
[1761027292759,1.82986488,3865.4,3865.3,0.5595]
[1761027295968,1.82986488,3865.4,3865.3,0.7747]
[1761027297965,0.81789488,3865.4,3865.3,1.24027]
[1761027298168,1.28345488,3865.4,3865.3,1.24027]
[1761027298970,1.28345488,3865.4,3865.3,0.7747]
[1761027300671,1.60985488,3865.4,3865.3,0.7747]
[1761027300869,1.83275488,3865.4,3865.3,0.7747]
[1761027301266,1.2426,3865.1,3865.0,0.577]
[1761027301770,1.24265,3864.7,3864.6,1.39687321]
[1761027302072,0.777,3864.4,3864.3,0.54950477]
[1761027302472,0.777,3864.4,3864.3,2.15947798]
[1761027303779,0.777,3864.4,3864.3,0.76260477]
[1761027304383,0.777,3864.4,3864.3,0.54950477]
[1761027305276,0.777,3864.4,3864.3,0.76260477]
[1761027306284,0.777,3864.4,3864.3,0.54950477]
[1761027306586,2.95975142,3864.4,3864.3,0.00260477]
[1761027307084,0.777,3863.9,3863.8,0.5469]
[1761027307682,0.777,3863.9,3863.8,0.76]
[1761027308076,0.777,3863.9,3863.8,0.76231652]
[1761027309477,0.5541,3864.2,3864.1,0.4423]
[1761027309681,0.5541,3864.2,3864.1,0.76]
[1761027309682,0.2277,3864.2,3864.1,0.76]
[1761027310384,0.777,3864.8,3864.7,0.76]
[1761027310686,1.36803022,3864.8,3864.7,0.76]
[1761027310983,0.3264,3864.7,3864.4,0.3177]
[1761027311185,1.59093813,3864.9,3864.0,0.1382]
[1761027311186,0.777,3864.5,3864.0,0.1382]
[1761027311490,0.3264,3864.1,3863.9,0.3177]
[1761027311680,0.777,3864.1,3864.0,0.8982]
[1761027311880,0.777,3864.1,3864.0,0.76]
[1761027312979,0.2277,3864.1,3864.0,0.8982]
[1761027313175,0.777,3864.4,3864.3,0.4423]
[1761027313381,0.777,3864.4,3864.3,0.76]
[1761027314686,0.2277,3865.0,3864.9,0.76]
[1761027314881,0.00270633,3865.4,3865.3,0.76]
[1761027318187,0.2107,3866.2,3866.1,1.23098]
[1761027318389,0.4367,3866.5,3866.4,0.7655]
[1761027318784,1.35907215,3866.5,3866.4,0.7655]
[1761027318992,1.35907215,3866.5,3866.4,0.5394]
[1761027319186,1.36175537,3866.5,3866.4,0.5394]
[1761027319990,1.49665537,3866.5,3866.4,0.2231]
[1761027320493,0.90488322,3866.5,3866.4,0.2231]
[1761027321192,0.7673,3866.3,3866.2,0.74995476]
[1761027321594,0.7673,3866.3,3866.2,0.97605476]
[1761027322092,0.4367,3866.3,3866.2,0.97605476]
[1761027322491,0.4367,3866.1,3865.8,0.3163]
[1761027322696,0.7673,3865.9,3865.8,0.2231]
[1761027322990,0.7673,3865.7,3865.6,0.5394]
[1761027323896,0.4367,3865.7,3865.6,0.7655]
[1761027324097,0.7673,3866.0,3865.9,0.7655]
[1761027325296,0.2107,3866.0,3865.9,0.7655]
[1761027325594,0.4367,3866.0,3865.9,0.7655]
[1761027325780,0.7673,3866.0,3865.9,0.7655]
[1761027326284,0.4367,3866.0,3865.6,0.91473]
[1761027326483,0.4367,3865.8,3865.7,0.4492]
[1761027326692,0.2107,3865.8,3865.7,0.4492]
[1761027326891,0.7673,3866.1,3866.0,0.7655]
[1761027327294,0.4367,3866.1,3866.0,0.896]
[1761027329594,0.2159,3866.4,3866.3,0.7628]
[1761027329799,0.00268322,3866.5,3866.4,0.7628]
[1761027330296,0.79088322,3866.5,3866.4,0.7628]
[1761027330593,0.79088322,3866.5,3865.8,0.5406]
[1761027330594,0.7882,3865.9,3865.8,0.5406]
[1761027330788,0.3464,3865.8,3865.6,0.3286]
[1761027330989,0.60229,3866.0,3865.6,0.3286]
[1761027330990,1.25373,3865.7,3865.6,0.5406]
[1761027331696,0.7882,3865.0,3864.9,0.212]
[1761027331888,0.925,3865.0,3864.9,0.20366291]
[1761027332090,0.7882,3865.0,3864.9,0.212]
[1761027332297,0.7882,3865.0,3864.9,0.5406]
[1761027332696,0.7882,3865.0,3864.9,0.7628]
[1761027332892,0.7882,3864.9,3864.8,0.75217292]
[1761027333101,0.7882,3864.9,3864.8,0.97437292]
[1761027333498,0.7882,3864.9,3864.8,0.7628]
[1761027334290,0.7882,3864.7,3864.6,0.42340695]
[1761027334597,0.7882,3864.7,3864.6,0.75200695]
[1761027334792,0.7882,3864.7,3864.6,0.7628]
[1761027335998,0.3464,3865.5,3864.9,0.4342]
[1761027336301,0.4418,3865.9,3865.8,0.7628]
[1761027336489,0.4418,3866.4,3866.3,0.5406]
[1761027336685,2.20132009,3866.4,3866.0,0.4569]
[1761027336902,0.7882,3866.1,3866.0,0.5406]
[1761027337103,0.4418,3866.1,3866.0,1.35659]
[1761027338104,0.4418,3866.1,3866.0,0.8911]
[1761027338593,0.7882,3866.1,3866.0,0.8911]
[1761027338902,0.4418,3866.1,3866.0,0.8911]
[1761027339600,0.7882,3866.1,3866.0,0.8911]
[1761027340097,0.4418,3866.1,3866.0,0.8911]
[1761027340494,0.7882,3866.1,3866.0,0.8911]
[1761027340693,0.7882,3866.1,3866.0,0.7628]
[1761027341406,0.7882,3866.1,3866.0,0.8911]
[1761027342108,2.44087009,3866.4,3866.3,0.7628]
[1761027342298,3.25850442,3866.4,3866.3,0.7628]
[1761027342606,0.00268322,3866.5,3866.4,0.7628]
[1761027342607,0.21858322,3866.5,3866.4,0.7628]
[1761027343996,0.00268322,3866.5,3866.4,0.7628]
[1761027345309,0.21858322,3866.5,3866.4,0.7628]
[1761027346200,0.79088322,3866.5,3866.4,0.7628]
[1761027347414,0.79088322,3866.5,3866.1,0.89968]
[1761027347415,0.4418,3866.2,3866.1,0.89968]
[1761027347598,0.00268322,3866.5,3866.4,0.4342]
[1761027347903,0.21858322,3866.5,3866.4,0.4342]
[1761027348210,0.79088322,3866.5,3866.4,0.7628]
[1761027348804,0.44448322,3866.5,3866.4,0.7628]
[1761027349007,0.79088322,3866.5,3866.4,0.7628]
[1761027349908,0.92768322,3866.5,3866.3,0.46546]
[1761027350112,0.7882,3866.3,3866.2,1.00607]
[1761027350512,0.7882,3866.3,3866.2,1.22827]
[1761027351209,0.7882,3866.3,3866.2,0.7628]
[1761027352412,0.7882,3866.2,3866.1,0.5406]
[1761027352910,0.2159,3865.8,3865.7,0.7628]
[1761027353114,0.3464,3866.0,3865.8,0.46552]
[1761027353413,0.7882,3866.0,3865.9,0.7628]
[1761027353607,0.925,3866.0,3865.9,0.5406]
[1761027353906,0.925,3866.0,3865.9,0.3286]
[1761027354108,0.925,3866.0,3865.9,0.5406]
[1761027354309,0.3464,3865.3,3865.2,0.5406]
[1761027354513,0.3464,3865.2,3865.0,0.5406]
[1761027354708,0.7882,3865.1,3865.0,0.5406]
[1761027355416,0.7882,3865.1,3865.0,0.7628]
[1761027356016,0.4418,3865.1,3865.0,0.8911]
[1761027357115,0.2159,3865.1,3865.0,0.8911]
[1761027357411,0.2159,3865.4,3865.3,1.22838]
[1761027358106,0.2159,3865.4,3865.3,0.7628]
[1761027358609,0.4337,3865.7,3865.6,0.7609]
[1761027358810,0.7724,3865.7,3865.6,0.7609]
[1761027359009,1.41312009,3865.8,3865.2,0.2124]
[1761027359010,0.7724,3865.3,3865.2,0.2124]
[1761027359812,0.7724,3865.3,3865.2,0.5499]
[1761027360313,1.87869009,3865.4,3864.9,0.46562]
[1761027360314,0.7724,3865.1,3864.9,0.3375]
[1761027360508,0.7724,3864.7,3864.6,0.5499]
[1761027360710,1.54232009,3865.0,3864.9,0.4234]
[1761027360711,0.55,3865.0,3864.9,0.4234]
[1761027360912,0.2113,3865.0,3864.9,0.7609]
[1761027361221,0.55,3865.6,3865.5,0.8979]
[1761027361515,0.7724,3865.6,3865.5,0.8979]
[1761027361905,0.7724,3865.6,3865.5,0.5499]
[1761027362105,0.7724,3865.6,3865.5,1.22645]
[1761027362512,0.7724,3865.6,3865.5,0.7609]
[1761027363202,0.7724,3865.6,3865.5,0.5499]
[1761027364510,0.7724,3865.1,3865.0,0.5499]
[1761027364715,0.7724,3865.1,3865.0,0.7609]
[1761027365019,0.4337,3865.1,3865.0,0.8979]
[1761027365207,0.4337,3865.1,3865.0,1.36351]
[1761027365921,0.5856,3865.4,3865.3,0.7609]
[1761027368617,3.06943009,3865.9,3865.4,0.80306]
[1761027368818,3.40813009,3865.9,3865.8,0.7609]
[1761027369020,3.99914101,3865.9,3865.8,0.7609]
[1761027369221,1.02471092,3865.9,3865.8,0.7609]
[1761027369518,0.2113,3866.2,3866.1,0.7609]
[1761027369720,0.77508322,3866.5,3866.4,0.4234]
[1761027370215,0.77508322,3866.5,3866.4,0.7609]
[1761027370715,0.43638322,3866.5,3866.4,0.7609]
[1761027372025,0.90428322,3866.5,3866.4,0.2124]
[1761027372219,0.77508322,3866.5,3866.4,0.5499]
[1761027372426,0.77508322,3866.5,3866.4,0.7609]
[1761027372721,0.00268322,3866.5,3866.4,0.7609]
[1761027373214,0.21398322,3866.5,3866.4,0.7609]
[1761027374007,0.77508322,3866.5,3866.4,0.5499]
[1761027374210,0.7724,3866.2,3866.1,0.4234]
[1761027374810,0.7724,3866.2,3866.1,0.7609]
[1761027375411,0.7724,3865.9,3865.8,0.7609]
[1761027375617,0.4337,3865.9,3865.8,0.7609]
[1761027376925,0.55,3866.2,3866.1,0.4234]
[1761027377125,0.7724,3866.2,3866.1,0.7609]
[1761027377725,0.4337,3866.2,3866.1,0.7609]
[1761027378126,0.7724,3866.2,3866.1,0.5499]